bitfinex-derivatives/quotes_ETHF0:USTF0_20250205
["timestamp","ask_amount","ask_price","bid_price","bid_amount"]
[1738793532654,3.2078,2788.9,2788.0,4.5851]
[1738793532853,3.2078,2789.2,2788.0,5.2668]
[1738793533048,0.12053623,2789.1,2788.0,5.2668]
[1738793533253,3.2078,2788.9,2788.0,5.2668]
[1738793533752,0.57366,2789.0,2788.0,5.2668]
[1738793534160,0.00262638,2788.3,2788.0,5.2668]
[1738793535054,0.00262638,2788.3,2788.0,4.5851]
[1738793541561,0.00262638,2788.3,2787.9,0.00538175]
[1738793541760,0.57642638,2788.3,2787.9,0.00538175]
[1738793542058,0.57381,2788.2,2787.9,0.00538175]
[1738793542263,0.00262638,2788.3,2787.9,0.00538175]
[1738793542755,0.57385,2788.0,2787.9,0.00538175]
[1738793542963,0.06028996,2788.0,2786.8,3.2078]
[1738793543263,3.2078,2787.6,2786.8,3.2078]
[1738793543463,0.57399,2787.4,2786.8,3.2078]
[1738793543856,0.57397,2787.5,2786.8,3.2078]
[1738793544061,0.06030186,2787.4,2786.8,3.2078]
[1738793544263,0.06568361,2787.4,2786.9,0.00538175]
[1738793544459,0.00538175,2787.4,2786.9,0.00538175]
[1738793546063,1.41638175,2787.4,2786.9,0.00538175]
[1738793546471,1.41638175,2787.4,2786.9,0.68068175]
[1738793547664,0.00538175,2787.4,2787.1,3.2078]
[1738793547863,1.411,2788.5,2787.1,3.2078]
[1738793548171,1.411,2788.5,2787.9,3.2078]
[1738793548665,17.3011,2788.7,2787.9,3.2078]
[1738793548969,1.411,2788.4,2787.9,3.2078]
[1738793549866,0.7271,2788.7,2787.9,3.2078]
[1738793550066,0.06026795,2789.1,2788.2,3.2078]
[1738793550266,0.06026795,2789.1,2788.8,3.2078]
[1738793551662,0.06026795,2789.1,2788.9,0.6972]
[1738793552055,0.06026795,2789.1,2788.9,1.3958]
[1738793552569,1.41,2790.0,2788.9,6.3958]
[1738793552769,1.41,2790.0,2789.3,3.2078]
[1738793553063,3.2078,2790.2,2789.3,3.2078]
[1738793553465,17.2004396,2790.3,2789.7,3.2078]
[1738793554066,3.2078,2790.2,2789.7,3.2078]
[1738793556762,3.2078,2790.2,2789.3,3.2078]
[1738793556961,3.2078,2789.9,2789.0,0.7372]
[1738793557156,2.995,2790.0,2789.0,0.7372]
[1738793557460,2.995,2790.0,2789.2,3.2078]
[1738793557665,2.995,2790.0,2789.0,0.7372]
[1738793557666,2.995,2790.0,2789.3,3.2078]
[1738793558866,4.6178,2790.2,2789.3,3.2078]
[1738793560063,1.41,2790.1,2789.6,3.2078]
[1738793561463,0.001,2790.2,2789.6,3.2078]
[1738793561770,0.001,2790.2,2790.0,3.2078]
[1738793562361,0.001,2790.2,2789.8,0.00538175]
[1738793562667,4.6178,2790.1,2789.8,0.00538175]
[1738793562966,0.57346,2789.9,2789.8,0.00538175]
[1738793563161,0.7027,2790.0,2789.8,0.00538175]
[1738793563568,0.63324228,2789.9,2789.8,0.00538175]
[1738793563768,0.57369,2788.9,2788.3,3.2078]
[1738793563964,0.57369,2788.9,2786.4,10.822348]
[1738793563965,3.2078,2788.5,2787.6,4.6355]
[1738793564169,1.41,2788.5,2787.7,0.7054]
[1738793564369,1.41,2788.5,2787.9,3.2078]
[1738793565063,1.41,2788.5,2787.9,3.21318175]
[1738793565064,1.41538175,2788.5,2787.9,3.21318175]
[1738793566165,0.00538175,2788.5,2787.9,3.21318175]
[1738793566361,3.2078,2789.8,2788.3,3.2078]
[1738793566567,3.2078,2789.8,2789.1,3.2078]
[1738793566874,3.2078,2789.8,2789.2,0.6767]
[1738793567459,3.2078,2789.8,2789.2,1.4083]
[1738793569274,0.001,2790.2,2789.4,3.2078]
[1738793569578,0.001,2790.2,2789.5,0.7006]
[1738793569767,0.001,2790.2,2789.5,0.70598175]
[1738793569968,0.001,2790.2,2789.7,3.2078]
[1738793574781,0.001,2790.2,2790.0,3.2078]
[1738793574976,0.001,2790.2,2790.1,0.6788]
[1738793575471,1.409,2791.0,2790.1,6.4063]
[1738793575775,1.98224,2791.0,2790.3,3.2078]
[1738793575978,1.409,2791.0,2790.3,3.2078]
[1738793576375,0.57326,2790.9,2790.3,3.2078]
[1738793576776,0.57328,2790.8,2790.3,3.2078]
[1738793576975,0.57327,2790.9,2790.3,3.2078]
[1738793577176,1.409,2791.0,2790.3,3.2078]
[1738793577389,1.98225,2791.0,2790.3,3.2078]
[1738793577578,1.409,2791.0,2790.3,3.2078]
[1738793577777,1.98225,2791.0,2790.3,3.2078]
[1738793578583,1.409,2791.0,2790.3,3.2078]
[1738793578783,1.409,2790.9,2790.3,3.2078]
[1738793579977,1.409,2791.1,2790.3,3.2078]
[1738793580178,3.2078,2790.7,2790.2,3.9489]
[1738793580685,3.2078,2791.0,2790.2,0.7411]
[1738793580887,19.6926396,2792.4,2790.7,3.2078]
[1738793581077,19.6926396,2792.4,2791.6,3.2078]
[1738793581078,16.4848396,2792.4,2791.6,3.2078]
[1738793581280,16.4848396,2792.4,2791.7,1.4675]
[1738793581477,16.4848396,2792.4,2792.0,3.2078]
[1738793581781,16.4848396,2792.4,2792.3,3.2078]
[1738793582377,9.3508396,2792.4,2792.3,8.2078]
[1738793582584,7.1112396,2792.4,2792.3,8.2078]
[1738793583990,7.1112396,2792.4,2792.3,3.2078]
[1738793584381,5.9914396,2792.4,2792.3,8.2078]
[1738793584581,4.87990892,2792.4,2792.3,12.80387437]
[1738793584893,3.2078,2793.3,2792.3,12.80387437]
[1738793585089,3.2078,2793.3,2792.9,3.2078]
[1738793585881,3.2078,2793.6,2792.9,3.2078]
[1738793586486,3.2078,2793.6,2793.0,0.00537182]
[1738793586684,3.2078,2793.6,2793.0,0.71317182]
[1738793587390,0.7365,2794.3,2793.0,0.71317182]
[1738793587391,3.2078,2795.9,2793.5,3.2078]
[1738793587591,0.05965039,2795.8,2794.5,3.2078]
[1738793587786,3.78008,2795.7,2794.5,3.2078]
[1738793587981,3.2078,2795.7,2794.5,3.2078]
[1738793588189,3.2078,2795.4,2794.5,3.2078]
[1738793588489,3.2078,2795.4,2794.6,4.61453067]
[1738793588682,3.2078,2795.7,2794.8,3.2078]
[1738793589284,3.2078,2795.7,2794.9,4.61453067]
[1738793589690,3.2078,2795.7,2795.1,3.2078]
[1738793589988,3.2078,2795.7,2794.8,3.2078]
[1738793590185,3.2078,2795.7,2794.6,0.6933]
[1738793590582,1.437,2795.6,2794.6,0.6933]
[1738793590785,3.2078,2795.4,2794.5,3.2078]
[1738793591378,0.721,2795.5,2794.5,3.2078]
[1738793591585,3.2078,2795.4,2794.5,3.2078]
[1738793592484,3.2078,2796.0,2795.1,3.2078]
[1738793592786,3.2078,2796.7,2795.4,3.2078]
[1738793593093,3.2078,2796.4,2795.7,3.2078]
[1738793593384,3.2078,2796.4,2795.4,3.2078]
[1738793593597,3.2078,2796.4,2795.8,0.00537182]
[1738793593885,0.7329,2796.9,2795.9,3.2078]
[1738793594188,3.77976,2797.3,2795.9,4.73446214]
[1738793594385,3.2078,2796.7,2795.8,0.00537182]
[1738793594691,3.2078,2796.7,2796.0,3.2078]
[1738793597084,3.2078,2797.0,2796.0,3.2078]
[1738793598084,3.2078,2797.0,2796.4,3.2078]
[1738793599393,3.2078,2796.7,2796.1,3.2078]
[1738793599884,0.7282,2796.6,2796.1,3.2078]
[1738793600093,3.2078,2796.4,2795.8,3.21317182]
[1738793602289,3.2078,2796.4,2795.8,0.00537182]
[1738793604286,0.7282,2796.6,2796.0,3.2078]
[1738793604593,0.7282,2796.6,2796.3,3.2078]
[1738793604792,3.2078,2797.1,2796.3,3.2078]
[1738793604997,3.9504,2797.4,2796.4,0.00958143]
[1738793605495,3.9504,2797.4,2796.7,3.2078]
[1738793605694,3.9504,2797.4,2796.3,3.2078]
[1738793605894,0.57195,2797.3,2796.3,3.2078]
[1738793606093,0.57196,2797.3,2796.3,3.2078]
[1738793606790,3.9504,2797.4,2796.3,3.2078]
[1738793607494,0.00264501,2798.0,2796.3,3.2078]
[1738793607495,0.00264501,2798.0,2797.2,3.2078]
[1738793607691,3.2078,2798.7,2797.9,3.2078]
[1738793608000,3.2078,2799.1,2798.4,3.2078]
[1738793608485,3.2078,2799.1,2798.7,0.0488683]
[1738793609091,1.492,2799.6,2798.7,0.0488683]
[1738793609092,3.2078,2798.8,2798.7,0.0488683]
[1738793609286,3.2078,2798.8,2797.7,3.2078]
[1738793609494,3.2078,2799.4,2798.7,3.2078]
[1738793609693,3.2078,2799.4,2798.7,7.75501562]
[1738793609894,3.2078,2799.4,2798.7,3.19999113]
[1738793613395,3.2078,2799.1,2798.3,3.2078]
[1738793615092,3.2078,2798.7,2798.0,0.00536174]
[1738793615301,3.2078,2798.4,2798.0,0.00536174]
[1738793615494,3.2078,2798.1,2797.1,3.2078]
[1738793615792,3.2078,2797.8,2797.1,3.2078]
[1738793615994,3.2078,2797.8,2796.8,3.2078]
[1738793616192,3.2078,2797.5,2796.8,3.2078]
[1738793616599,0.00529505,2797.4,2796.9,0.00536174]
[1738793617601,3.77978,2797.2,2796.2,3.2078]
[1738793617806,3.2078,2797.2,2796.2,3.2078]
[1738793617999,4.6938,2797.2,2796.2,3.2078]
[1738793618898,1.485,2797.1,2796.4,0.00536174]
[1738793619100,0.00529505,2797.4,2796.8,3.2078]
[1738793619294,0.00529505,2797.4,2796.4,0.00536174]
[1738793619295,0.00529505,2797.4,2796.5,3.2078]
[1738793619496,0.00529505,2797.4,2797.0,3.2078]
[1738793619901,1.494,2797.3,2796.5,3.2078]
[1738793620100,1.494,2797.3,2796.6,3.2078]
[1738793620302,0.00529505,2797.4,2797.2,3.2078]
[1738793620503,3.2078,2798.1,2797.2,3.2078]
[1738793621000,3.2078,2798.2,2797.2,3.2078]
[1738793621209,4.7208,2798.2,2797.2,3.2078]
[1738793621400,3.2078,2797.9,2797.2,3.2078]
[1738793621599,3.2078,2797.9,2797.4,0.00536174]
[1738793623310,3.9184,2797.9,2797.4,0.00536174]
[1738793625013,0.00536174,2798.0,2797.5,3.2078]
[1738793626611,3.9184,2798.9,2797.9,3.2078]
[1738793626816,3.9184,2798.9,2798.7,3.2078]
[1738793626817,0.7106,2798.9,2798.7,3.2078]
[1738793627007,0.7106,2798.9,2798.2,3.2078]
[1738793627809,0.7106,2798.9,2797.9,3.2078]
[1738793628005,3.2078,2798.7,2797.6,3.9483]
[1738793628215,4.7138,2798.7,2797.6,0.7405]
[1738793628610,4.7138,2798.7,2797.9,3.2078]
[1738793630415,3.2078,2798.5,2797.9,3.2078]
[1738793632217,3.2078,2798.5,2797.4,0.00536174]
[1738793632413,3.2078,2798.5,2797.7,3.2078]
[1738793633119,3.2078,2798.5,2797.6,3.2078]
[1738793633311,3.2078,2798.5,2797.9,3.2078]
[1738793637222,0.6814,2798.6,2797.9,3.2078]
[1738793637425,0.6814,2798.6,2798.2,3.2078]
[1738793638223,0.7106,2798.9,2798.4,3.2078]
[1738793638521,1.28389,2799.6,2798.7,3.2078]
[1738793638522,1.496,2799.3,2798.7,3.2078]
[1738793638924,1.496,2799.3,2798.7,3.21316174]
[1738793639920,3.2078,2799.4,2798.7,3.21316174]
[1738793641127,3.2078,2799.4,2798.7,0.00536174]
[1738793641626,3.2078,2799.7,2799.0,3.2078]
[1738793641928,0.7196,2799.6,2798.7,0.74646174]
[1738793642124,0.7196,2799.6,2798.9,3.2078]
[1738793642316,0.7196,2799.6,2798.7,0.74646174]
[1738793642317,0.57159,2799.1,2798.7,0.00536174]
[1738793642625,3.2078,2799.3,2798.7,0.00536174]
[1738793642828,0.57163,2798.9,2798.7,0.00536174]
[1738793643125,2.2166,2798.8,2798.7,0.00536174]
[1738793643728,2.78824,2798.8,2798.7,0.00536174]
[1738793643921,7.2166,2798.8,2797.8,3.2078]
[1738793644124,0.57169,2798.6,2797.8,3.2078]
[1738793644526,3.2078,2798.4,2797.8,3.2078]
[1738793645226,3.2078,2798.4,2797.8,3.21316174]
[1738793646529,1.494,2798.4,2798.1,3.2078]
[1738793646727,1.494,2798.4,2797.8,0.00536174]
[1738793646728,4.7018,2798.4,2797.8,0.00536174]
[1738793646926,0.57176,2798.3,2797.8,0.00536174]
[1738793647130,4.7018,2798.4,2797.8,0.00536174]
[1738793647331,0.57182,2797.9,2797.8,0.00536174]
[1738793647630,3.2078,2798.0,2797.8,0.00536174]
[1738793647825,1.26302,2797.9,2796.7,3.2078]
[1738793648026,3.2078,2797.7,2796.6,3.49994454]
[1738793648221,3.2078,2797.7,2796.6,3.2078]
[1738793648422,3.2078,2797.7,2797.2,3.2078]
[1738793648824,0.6912,2797.9,2797.1,3.2078]
[1738793649135,0.00536174,2797.8,2797.7,3.2078]
[1738793651636,0.00536174,2797.8,2797.4,0.7301]
[1738793651835,0.00536174,2797.8,2797.5,3.2078]
[1738793658943,1.48336174,2797.8,2797.2,0.00536174]
[1738793659143,0.57187,2797.7,2797.2,0.00536174]
[1738793659440,2.05521174,2797.8,2797.2,0.00536174]
[1738793659638,3.2078,2797.7,2797.2,0.00536174]
[1738793661037,3.2078,2797.6,2797.2,0.00536174]
[1738793661539,3.2078,2797.6,2796.8,3.2078]
[1738793661935,0.57194,2797.4,2796.8,3.2078]
[1738793662136,3.2078,2797.6,2796.8,3.2078]
[1738793662943,3.2078,2797.6,2796.9,0.00536174]
[1738793666341,4.6768,2797.6,2796.9,0.00536174]
[1738793668539,3.2078,2797.6,2796.9,0.00536174]
[1738793668738,4.6748,2797.6,2796.9,0.00536174]
[1738793670337,0.00536174,2797.8,2797.5,3.2078]
[1738793670743,0.00536174,2797.8,2797.6,0.7106]
[1738793671444,4.5663,2798.7,2797.6,0.7106]
[1738793671757,4.5663,2798.7,2798.2,3.2078]
[1738793672142,0.6844,2798.7,2798.5,3.2078]
[1738793673649,0.00536174,2798.9,2798.5,3.2078]
[1738793674039,0.57699174,2798.9,2798.3,0.00536174]
[1738793674247,3.2078,2798.8,2798.3,0.00536174]
[1738793675340,3.77945,2798.8,2798.3,0.00536174]
[1738793675540,3.2078,2798.8,2798.3,0.00536174]
[1738793677049,0.00536174,2798.9,2798.5,3.2078]
[1738793679553,0.00536174,2798.9,2798.8,3.2078]
[1738793680444,0.00536174,2798.9,2798.3,0.00536174]
[1738793680445,8.21316174,2798.9,2798.3,0.00536174]
[1738793680646,3.2078,2798.5,2797.3,3.2078]
[1738793680848,3.2078,2798.2,2796.4,0.7251]
[1738793681053,3.2078,2798.2,2797.6,3.2078]
[1738793681246,3.2078,2798.2,2797.3,3.2078]
[1738793681948,3.2078,2798.2,2797.5,0.00536174]
[1738793682453,3.2078,2797.9,2797.5,0.00536174]
[1738793685961,3.2078,2798.2,2797.5,0.00536174]
[1738793686353,3.2078,2798.2,2797.6,3.2078]
[1738793686764,0.7308,2798.3,2797.6,3.2078]
[1738793688461,0.00536174,2798.9,2798.0,3.2078]
[1738793688660,0.00536174,2798.9,2798.5,3.2078]
[1738793688860,0.00536174,2798.9,2798.8,3.2078]
[1738793689462,3.2078,2801.1,2799.3,0.57152]
[1738793689665,3.2078,2801.1,2798.8,21.96723489]
[1738793689666,3.2078,2801.1,2800.4,3.2078]
[1738793689856,3.2078,2801.1,2798.6,1.7439]
[1738793689857,3.2078,2801.1,2800.1,3.2078]
[1738793690068,3.2078,2801.1,2800.2,0.7112]
[1738793690461,0.00536174,2800.9,2800.4,0.00536174]
[1738793692670,0.00536174,2800.9,2800.4,3.21316174]
[1738793693868,0.00536174,2800.9,2800.4,0.00536174]
[1738793694076,3.2078,2800.6,2800.4,0.00536174]
[1738793694577,3.2078,2800.6,2799.6,3.9282]
[1738793694879,3.2078,2800.3,2799.6,3.9282]
[1738793695779,3.2078,2800.3,2799.7,0.00536174]
[1738793698075,0.7348,2800.8,2799.7,0.00536174]
[1738793698076,3.2078,2800.0,2799.7,0.00536174]
[1738793698881,3.2078,2800.3,2799.7,0.00536174]
[1738793699080,3.2078,2800.8,2799.8,7.86558123]
[1738793699280,3.2078,2800.8,2799.9,1.3825]
[1738793699483,3.2078,2800.8,2800.1,3.2078]
[1738793699778,3.2078,2800.7,2800.1,3.2078]
[1738793700484,0.00536174,2800.9,2800.1,3.2078]
[1738793701180,3.2078,2800.7,2800.1,3.2078]
[1738793701380,3.21316174,2800.9,2799.9,1.3825]
[1738793701881,3.2078,2800.5,2799.9,0.7005]
[1738793702183,3.21316174,2800.9,2799.9,0.7005]
[1738793703476,3.2078,2800.6,2799.9,0.7005]
[1738793703683,3.2078,2800.3,2799.7,0.00536174]
[1738793704081,0.00536174,2800.9,2799.7,0.00536174]
[1738793704082,3.9577,2800.6,2799.7,0.00536174]
[1738793704680,3.2078,2800.3,2799.7,0.00536174]
[1738793704984,3.2078,2800.0,2798.5,3.2078]
[1738793705183,3.2078,2799.4,2798.0,0.7272]
[1738793705485,0.57155,2799.3,2798.0,0.7272]
[1738793705685,2.01534,2799.3,2798.0,0.7272]
[1738793705881,3.2078,2799.8,2798.7,3.2078]
[1738793706183,0.00536174,2799.5,2799.0,0.00536174]
[1738793706489,0.00536174,2799.5,2799.0,3.21316174]
[1738793706686,0.00536174,2799.5,2799.0,0.00536174]
[1738793706985,0.00536174,2799.5,2799.0,3.21316174]
[1738793707186,0.00536174,2799.5,2799.3,3.2078]
[1738793707587,3.2078,2800.6,2799.4,4.73726873]
[1738793707774,3.2078,2800.6,2800.0,3.2078]
[1738793707981,3.2078,2800.9,2800.4,3.2078]
[1738793708180,3.2078,2800.9,2800.1,7.82383657]
[1738793708380,3.2078,2800.9,2800.1,3.2078]
[1738793708780,0.00536174,2800.8,2800.2,0.00536174]
[1738793710484,0.70456174,2800.8,2800.2,0.00536174]
[1738793710684,0.00536174,2800.8,2800.3,3.2078]
[1738793710882,0.00536174,2800.8,2800.2,0.00536174]
[1738793711788,0.00536174,2800.8,2800.6,3.2078]
[1738793712285,0.00536174,2800.8,2800.7,0.7034]
[1738793713188,0.63419477,2801.8,2800.7,10.26181105]
[1738793713389,3.2078,2802.4,2801.4,3.2078]
[1738793713582,3.2078,2802.7,2801.7,3.2078]
[1738793713888,21.3097911,2803.1,2802.4,3.2078]
[1738793714483,0.00535189,2803.0,2802.5,0.00535189]
[1738793715190,18.1019911,2803.1,2802.5,0.00535189]
[1738793715386,11.19973793,2803.1,2803.0,3.2078]
[1738793715588,9.85932901,2803.1,2803.0,3.2078]
[1738793715788,9.67755474,2803.1,2803.0,9.56521352]
[1738793715995,1.83626874,2803.1,2803.0,12.77301352]
[1738793716296,22.702252,2804.0,2803.0,12.77301352]
[1738793716491,3.2078,2804.0,2803.4,3.2078]
[1738793716689,0.00533875,2803.8,2803.4,3.2078]
[1738793716992,0.00533875,2803.8,2803.5,4.56105126]
[1738793717884,3.2078,2804.0,2803.4,3.2078]
[1738793718289,3.2078,2804.0,2803.5,4.73225322]
[1738793718591,3.2078,2804.0,2803.1,3.2078]
[1738793718790,3.2078,2803.7,2803.1,3.2078]
[1738793719093,0.7493,2803.6,2803.1,3.2078]
[1738793719389,3.2078,2803.4,2802.5,0.00535189]
[1738793719988,0.7493,2803.6,2802.5,0.00535189]
[1738793719989,3.2078,2803.1,2802.5,0.00535189]
[1738793721294,0.7712,2803.0,2802.5,0.00535189]
[1738793723596,3.2078,2802.6,2802.0,3.2078]
[1738793723897,3.2078,2802.6,2801.3,3.2078]
[1738793723898,0.7247,2802.5,2801.3,3.2078]
[1738793724200,3.2078,2801.9,2801.0,3.2078]
[1738793724494,0.7247,2802.5,2800.6,3.2078]
[1738793724495,3.2078,2801.5,2800.6,3.2078]
[1738793724799,3.2078,2801.1,2800.1,3.2078]
[1738793724992,3.2078,2801.1,2800.8,0.00535189]
[1738793725185,3.2078,2801.1,2799.7,3.2078]
[1738793725390,0.69725189,2801.3,2799.7,3.2078]
[1738793725391,3.2078,2800.4,2799.7,3.2078]
[1738793725587,3.2078,2800.1,2799.4,3.2078]
[1738793726294,3.2078,2800.4,2799.4,3.2078]
[1738793726493,3.2078,2800.4,2799.5,0.00535189]
[1738793726999,0.7742,2800.3,2799.5,0.00535189]
[1738793727489,0.7742,2800.3,2799.7,3.2078]
[1738793727689,0.7742,2800.3,2799.5,0.00535189]
[1738793728094,0.7742,2800.3,2799.7,3.2078]
[1738793729593,3.2078,2799.8,2799.5,0.00535189]
[1738793729893,4.8048,2799.8,2799.5,0.00535189]
[1738793730094,0.7394,2799.7,2799.5,0.00535189]
[1738793730488,0.7394,2799.7,2798.2,3.2078]
[1738793730693,3.2078,2799.5,2798.5,3.2078]
[1738793731191,5.31446,2799.7,2798.5,3.2078]
[1738793731393,3.2078,2799.1,2798.5,3.2078]
[1738793731591,3.2078,2799.1,2798.8,0.00535189]
[1738793731995,3.2078,2799.1,2797.9,3.2078]
[1738793732199,3.2078,2798.5,2797.9,3.2078]
[1738793732395,0.5716,2799.1,2797.9,3.2078]
[1738793732396,1.594,2798.7,2797.9,3.2078]
[1738793732897,3.2078,2799.0,2798.0,4.69771353]
[1738793733096,3.2078,2799.0,2797.9,3.2078]
[1738793733299,0.00535189,2798.8,2798.4,0.04886858]
[1738793733897,1.42821,2800.6,2798.4,0.04886858]
[1738793734100,3.2078,2802.3,2800.5,3.2078]
[1738793734300,3.2078,2802.3,2801.4,0.04886858]
[1738793734603,1.626,2802.6,2801.4,0.04886858]
[1738793734604,3.2078,2802.0,2801.4,0.04886858]
[1738793735009,1.625,2801.9,2801.4,0.04886858]
[1738793735196,0.7821,2801.9,2801.4,3.26202047]
[1738793735496,0.00535189,2802.0,2801.6,0.04886858]
[1738793735897,0.00535189,2802.0,2801.9,3.2078]
[1738793736100,0.00535189,2802.0,2801.9,8.2078]
[1738793736299,0.00535189,2802.0,2801.9,12.51173156]
[1738793736503,0.00535189,2802.0,2801.9,7.51173156]
[1738793736699,0.00535189,2802.0,2801.9,12.51173156]
[1738793736904,3.2078,2802.7,2801.9,3.25666858]
[1738793737106,4.8318,2802.9,2801.9,3.25666858]
[1738793737302,3.2078,2802.7,2802.4,0.04886858]
[1738793737603,1.624,2802.9,2802.4,0.04886858]
[1738793737795,4.8318,2802.9,2802.4,0.04886858]
[1738793738000,4.83715189,2802.9,2802.4,0.05422047]
[1738793738403,1.62935189,2802.9,2802.6,0.04886858]
[1738793738603,3.2078,2802.7,2802.6,0.04886858]
[1738793738801,1.62935189,2802.9,2802.6,0.04886858]
[1738793738999,3.2078,2802.7,2802.6,0.04886858]
[1738793739195,1.62935189,2802.9,2802.6,0.04886858]
[1738793739404,1.62935189,2802.9,2802.7,0.04886858]
[1738793739797,4.83715189,2802.9,2802.7,0.04886858]
[1738793740497,4.83715189,2802.9,2802.8,0.04886858]
[1738793742002,3.21315189,2802.9,2802.8,0.04886858]
[1738793742212,6.61435189,2802.9,2802.8,0.04886858]
[1738793742602,10.39295189,2802.9,2802.4,0.00535189]
[1738793742801,0.57086,2802.7,2802.0,3.2078]
[1738793743000,0.57086,2802.7,2801.7,3.2078]
[1738793743298,3.2078,2802.0,2801.1,3.2078]
[1738793743506,3.2078,2801.6,2801.1,3.2078]
[1738793743902,3.2078,2801.3,2801.1,0.00535189]
[1738793744104,3.2078,2801.3,2800.6,3.2078]
[1738793744802,0.05952121,2801.2,2799.8,3.2078]
[1738793745107,3.2078,2800.7,2799.5,3.2078]
[1738793745406,2.38862121,2800.6,2800.2,0.00535189]
[1738793745601,3.2078,2800.3,2799.5,3.2078]
[1738793746217,3.2078,2800.3,2798.6,0.7569]
[1738793746218,3.2078,2800.0,2799.0,3.2078]
[1738793746406,3.77921,2800.0,2799.0,3.2078]
[1738793746603,2.3291,2800.6,2799.0,3.2078]
[1738793746604,3.2078,2799.7,2799.0,3.2078]
[1738793746804,1.607,2799.6,2799.2,0.00535189]
[1738793747005,1.605,2799.6,2799.2,0.00535189]
[1738793748009,1.605,2799.6,2799.3,3.2078]
[1738793748208,1.605,2799.6,2799.2,0.00535189]
[1738793748599,1.605,2799.6,2799.3,3.2078]
[1738793750207,1.605,2799.6,2799.2,0.00535189]
[1738793750610,1.605,2799.6,2799.3,3.2078]
[1738793751605,0.00535189,2799.8,2799.3,3.2078]
[1738793753606,0.00535189,2799.8,2799.2,0.00535189]
[1738793753814,3.2078,2799.5,2799.2,0.00535189]
[1738793755013,0.7615,2799.4,2799.2,0.00535189]
[1738793755417,1.33303,2799.4,2799.2,0.00535189]
[1738793755618,1.33303,2799.4,2798.3,3.2078]
[1738793755619,5.7615,2799.4,2798.3,3.2078]
[1738793755813,0.7615,2799.4,2798.3,3.2078]
[1738793756222,2.3475,2799.4,2798.6,3.2078]
[1738793756421,2.3475,2799.4,2798.3,3.2078]
[1738793756713,0.57159,2799.1,2798.6,0.0035679]
[1738793757115,3.2078,2798.9,2798.6,0.0035679]
[1738793757319,0.57166,2798.7,2798.6,0.0035679]
[1738793757515,0.57162,2798.9,2798.6,0.0035679]
[1738793757711,0.57164,2798.8,2798.6,0.0035679]
[1738793758119,3.2078,2798.7,2797.4,0.7668]
[1738793758311,3.2078,2798.7,2797.8,3.2078]
[1738793758312,0.57173,2798.4,2797.8,3.2078]
[1738793758517,1.59,2798.3,2797.8,3.2078]
[1738793758913,3.2078,2798.1,2797.5,3.2078]
[1738793759415,0.00535189,2798.1,2797.5,3.2078]
[1738793761120,0.57183,2797.9,2797.5,3.2078]
[1738793761321,3.21315189,2798.1,2797.2,3.2078]
[1738793761516,0.5718,2798.0,2797.2,3.2078]
[1738793761718,3.78494189,2798.1,2797.2,3.2078]
[1738793761919,0.05959586,2798.0,2797.2,3.2078]
[1738793762126,0.05959586,2798.0,2796.2,0.7971]
[1738793762127,3.2078,2797.3,2796.5,3.2078]
[1738793762319,1.582,2797.2,2796.5,3.2078]
[1738793763621,1.582,2797.2,2796.3,3.2078]
[1738793764425,2.15398,2797.2,2796.3,3.2078]
[1738793764719,1.582,2797.2,2796.3,3.2078]
[1738793765127,3.2078,2796.9,2796.3,3.2078]
[1738793765621,1.576,2797.3,2796.5,3.2078]
[1738793766020,3.2078,2797.4,2796.5,3.2078]
[1738793766217,0.00536155,2797.2,2796.5,3.2078]
[1738793766417,0.00536155,2797.2,2796.8,3.2078]
[1738793767729,0.00536155,2797.2,2797.1,3.2078]
[1738793770232,0.00536155,2797.2,2796.8,3.2078]
[1738793770418,0.00536155,2797.2,2796.0,0.7259]
[1738793770419,3.21316155,2797.2,2796.0,0.7259]
[1738793770730,3.21316155,2797.2,2795.9,3.2078]
[1738793770930,3.2078,2796.9,2795.9,3.2078]
[1738793771131,0.57212,2796.5,2795.9,3.2078]
[1738793771329,1.567,2796.4,2795.9,3.2078]
[1738793771632,0.5722,2796.1,2795.4,0.7876]
[1738793771831,1.567,2796.4,2795.4,0.7876]
[1738793772027,0.57216,2796.3,2795.4,0.7876]
[1738793772335,1.567,2797.0,2796.0,3.2078]
[1738793772632,0.57204,2796.9,2795.7,3.2078]
[1738793772827,1.567,2797.0,2795.7,3.2078]
[1738793773031,3.2078,2796.9,2795.7,3.2078]
[1738793773231,3.2078,2796.3,2795.1,3.9507]
[1738793773426,2.07467,2796.2,2795.1,3.2078]
[1738793773627,5.28247,2796.2,2795.0,3.2078]
[1738793774233,0.00536155,2795.9,2795.0,3.2078]
[1738793774532,1.581,2795.8,2795.0,3.2078]
[1738793775134,0.00536155,2795.9,2795.3,3.2078]
[1738793775327,0.00536155,2795.9,2795.0,3.2078]
[1738793775636,0.00536155,2795.9,2795.6,3.2078]
[1738793776540,0.00536155,2795.9,2795.7,0.7293]
[1738793776838,3.2078,2796.8,2795.7,0.7293]
[1738793777040,3.2078,2796.4,2795.6,3.2078]
[1738793777939,3.2078,2796.4,2795.7,0.00536155]
[1738793777940,0.00536155,2796.3,2795.7,0.00536155]
[1738793778842,0.00536155,2796.3,2796.0,3.2078]
[1738793782239,0.57218,2796.2,2796.0,3.2078]
[1738793782441,0.5722,2796.1,2795.7,0.00536155]
[1738793782642,0.00536155,2796.3,2795.7,0.00536155]
[1738793783036,0.57219,2796.1,2795.7,0.00536155]
[1738793783241,0.57752155,2796.3,2795.7,0.00536155]
[1738793783438,0.00536155,2796.3,2795.7,0.00536155]
[1738793783643,0.57225,2795.8,2795.7,0.00536155]
[1738793783838,0.57227,2795.7,2795.3,3.2078]
[1738793784243,1.578,2795.8,2795.3,3.2078]
[1738793785142,2.15025,2795.8,2795.3,3.2078]
[1738793785345,0.5723,2795.6,2795.3,3.2078]